fUST/lending_fUST_20240709
["ID","MTS","AMOUNT","RATE_DAILY","PERIOD"]
[331561058,1720504239250,-6863.87493251,0.0002,2]
[331561059,1720504239266,-154.62117811,0.0002,2]
[331561060,1720504239276,-763.79636746,0.0002,2]
[331561061,1720504239287,-293.45867215,0.0002,2]
[331561062,1720504239297,-21332.21748007,0.0002,2]
[331561063,1720504239309,-52946.73685478,0.0002,2]
[331561064,1720504239319,-4855.00134939,0.0002,2]
[331561065,1720504239328,-4272.70076566,0.0002,2]
[331561066,1720504239341,-49117.796117,0.0002,2]
[331561067,1720504239350,-6207.88017944,0.0002,2]
[331561068,1720504239360,-153.95020535,0.0002,2]
[331561069,1720504239370,-155.2509691,0.0002,2]
[331561070,1720504239380,-394.71157965,0.000203,2]
[331561071,1720504239391,-30523.8868916,0.0002099,3]
[331561072,1720504239401,-257.48286569,0.00021,2]
[331561073,1720504239411,-10104.88919973,0.00021,2]
[331561074,1720504239421,-232.14265427,0.00021,2]
[331561075,1720504239432,-845.71396128,0.00021067,2]
[331561076,1720504239442,-750.0,0.00021096,2]
[331561077,1720504239452,-222.86799845,0.000212,2]
[331561078,1720504239462,-880.11608907,0.0002217,2]
[331561079,1720504239472,-10858.66581753,0.0002225,2]
[331561080,1720504239482,-1308.5658289,0.000223,2]
[331561081,1720504239492,-845.71396128,0.00022345,2]
[331561082,1720504239502,-150.0,0.00022475,2]
[331561083,1720504239512,-238.61153286,0.00023,2]
[331561084,1720504239521,-11354.94033921,0.00023,2]
[331561085,1720504239531,-250.0,0.00023023,2]
[331561086,1720504239541,-350.0,0.00023571,2]
[331561087,1720504239551,-845.71396128,0.00023622,2]
[331561088,1720504239560,-2605.06384825,0.000239,2]
[331561089,1720504239570,-450.0,0.00024119,2]
[331561090,1720504239579,-30523.8868916,0.0002439,3]
[331561091,1720504239588,-44969.99066312,0.000244,2]
[331561092,1720504239599,-550.0,0.00024667,2]
[331561093,1720504239608,-845.71396128,0.000249,2]
[331561094,1720504239618,-30523.8868916,0.0002499,3]
[331561095,1720504239627,-189.22156458,0.00025,2]
[331561096,1720504239637,-1851.34621195,0.00025,2]
[331561097,1720504239649,-7427.1094573,0.00025,60]
[331561098,1720504239658,-1025.43091416,0.00025,2]
[331561099,1720504239667,-45100.66836002,0.00025,2]
[331561100,1720504239676,-307.64906425,0.00025,2]
[331561101,1720504239686,-694.57046232,0.00025197,2]
[331561102,1720504239695,-650.0,0.00025215,2]
[331561103,1720504239704,-750.0,0.00025763,2]
[331561104,1720504239713,-30523.8868916,0.00026052,3]
[331561105,1720504239722,-30000.0,0.00026062,2]
[331561106,1720504239731,-850.0,0.00026311,2]
[331561107,1720504239740,-7458.94652043,0.0002649,2]
[331561108,1720504239750,-2058.61750007,0.000266,2]
[331561109,1720504239760,-606.71308225,0.00026859,2]
[331561110,1720504239769,-750.0,0.00027195,2]
[331561111,1720504239779,-256.6373675,0.00027397,2]
[331561112,1720504239789,-500.0,0.00027397,2]
[331561113,1720504239803,-500.0,0.00027397,2]
[331561114,1720504239812,-500.0,0.00027397,2]
[331561115,1720504239822,-500.0,0.00027397,2]
[331561116,1720504239831,-500.0,0.00027397,2]
[331561117,1720504239841,-500.0,0.00027397,2]
[331561118,1720504239851,-500.0,0.00027397,2]
[331561119,1720504239862,-500.0,0.00027397,2]
[331561120,1720504239872,-500.0,0.00027397,2]
[331561121,1720504239883,-500.0,0.00027397,2]
[331561122,1720504239894,-500.0,0.00027397,2]
[331561123,1720504239904,-500.0,0.00027397,2]
[331561124,1720504239914,-500.0,0.00027397,2]
[331561125,1720504239923,-500.0,0.00027397,2]
[331561126,1720504239933,-500.0,0.00027397,2]
[331561127,1720504239943,-500.0,0.00027397,2]
[331561128,1720504239953,-500.0,0.00027397,2]
[331561129,1720504239963,-500.0,0.00027397,2]
[331561130,1720504239973,-500.0,0.00027397,2]
[331561131,1720504239982,-500.0,0.00027397,2]
[331561132,1720504239992,-500.0,0.00027397,2]
[331561133,1720504240001,-500.0,0.00027397,2]
[331561134,1720504240011,-500.0,0.00027397,2]
[331561135,1720504240020,-500.0,0.00027397,2]
[331561136,1720504240030,-500.0,0.00027397,2]
[331561137,1720504240039,-500.0,0.00027397,2]
[331561138,1720504240049,-500.0,0.00027397,2]
[331561139,1720504240058,-611.21921576,0.00027397,2]
[331561140,1720504240067,-500.0,0.00027397,2]
[331561141,1720504240076,-500.0,0.00027397,2]
[331561142,1720504240086,-500.0,0.00027397,2]
[331561144,1720504240095,-500.0,0.00027397,2]
[331561146,1720504240105,-500.0,0.00027397,2]
[331561148,1720504240114,-175.37288532,0.000274,2]
[331561149,1720504240123,-6133.03736829,0.000275,2]
[331561150,1720504240144,-11844.62467158,0.000275,2]
[331561151,1720504240154,-268.60335139,0.00028,2]
[331561152,1720504240164,-172.42394717,0.00028,30]
[331561153,1720504240174,-505.07079601,0.00028,2]
[331561154,1720504240184,-2605.06384825,0.000289,2]
[331561155,1720504240194,-248.18592096,0.000298,120]
[331561156,1720504240204,-170.45207762,0.0003,4]
[331561157,1720504240214,-643.5565645,0.0003,4]
[331561158,1720504240224,-283.0,0.0003,2]
[331561159,1720504240234,-150.0,0.00032877,2]
[331561160,1720504240244,-283.0,0.00033,2]
[331561161,1720504240253,-750.0,0.00033295,2]
[331561162,1720504240263,-1282.49405735,0.00034728,12]
[331561163,1720504240275,-1000.0,0.000348,3]
[331561164,1720504240285,-283.0,0.000349,2]
[331561165,1720504240297,-26468.49870678,0.000349,2]
[331561166,1720504240307,-192.802,0.00034953,30]
[331561167,1720504240317,-1662.41784921,0.00035,4]
[331561168,1720504240390,-1183.21854684,0.00035,2]
[331561169,1720504240401,-275.22284259,0.00035,120]
[331561170,1720504240411,-2372.02455725,0.00035292,60]
[331561171,1720504240421,-10570.15,0.00035616,3]
[331561172,1720504240431,-1431.78470865,0.00035999,2]
[331561173,1720504240440,-283.0,0.00036,2]
[331561174,1720504240450,-528.3,0.000365,62]
[331561175,1720504240460,-1580.53894604,0.00036732,4]
[331561176,1720504240470,-154.62117811,0.00037,4]
[331561177,1720504240481,-435.0,0.0003701,2]
[331561178,1720504240491,-1500.0,0.00037259,4]
[331561179,1720504240500,-703.65876633,0.00037807,4]
[331561180,1720504240511,-283.0,0.000379,2]
[331561181,1720504240520,-5910.9073751,0.000379,2]
[331561182,1720504240530,-692.82385815,0.00037999,30]
[331561183,1720504240539,-536.07685891,0.00038,30]
[331561184,1720504240548,-151.047,0.0003844,2]
[331561185,1720504240558,-1405.0,0.0003844,2]
[331561186,1720504240567,-38658.21543801,0.0003849,20]
[331561187,1720504240577,-1007.544524,0.000385,27]
[331561188,1720504240586,-151.0,0.00038586,14]
[331561189,1720504240596,-151.0,0.00038586,14]
[331561190,1720504240605,-151.0,0.00038586,14]
[331561191,1720504240614,-157.184594,0.00038586,14]
[331561192,1720504240623,-151.0,0.00038591,14]
[331561193,1720504240633,-151.0,0.00038591,14]
[331561194,1720504240643,-160.556798,0.00038591,14]
[331561195,1720504240653,-2636.71207576,0.00038592,5]
[331561196,1720504240662,-118693.89868662,0.00038592,14]
[331561197,1720504240675,-1001.73588072,0.00038592,14]
[331561198,1720504240686,-2399.638932,0.00038592,14]
[331561199,1720504240824,-1398.71037267,0.00036351,4]
[331561200,1720504240834,-5664.58772809,0.00038592,14]
[331561201,1720504240845,-1440.90000001,0.00038592,14]
[331561202,1720504240857,-163796.15505256,0.00038592,14]
[331561203,1720504240868,-155.735033,0.00038593,14]
[331561204,1720504240877,-151.0,0.00038593,14]
[331561205,1720504240887,-162.077055,0.00038593,14]
[331561206,1720504240899,-190.326571,0.00038593,14]
[331561207,1720504240908,-190.326571,0.00038593,14]
[331561208,1720504240917,-151.0,0.00038593,14]
[331561209,1720504240929,-151.0,0.00038593,14]
[331561210,1720504240939,-151.0,0.00038593,14]
[331561211,1720504240948,-152.713107,0.00038593,14]
[331561212,1720504240957,-151.0,0.00038593,14]
[331561213,1720504240968,-151.0,0.00038593,14]
[331561214,1720504240977,-322.455449,0.00038593,2]
[331561215,1720504240987,-322.455449,0.00038593,2]
[331561216,1720504240996,-151.0,0.00038593,14]
[331561217,1720504241006,-151.0,0.00038593,14]
[331561218,1720504241015,-151.0,0.00038593,14]
[331561219,1720504241024,-151.0,0.00038593,14]
[331561220,1720504241033,-1740.043342,0.00038593,14]
[331561221,1720504241043,-1740.043342,0.00038593,14]
[331561222,1720504241052,-156.976629,0.00038593,14]
[331561223,1720504241061,-1999.999999,0.00038593,120]
[331561224,1720504241071,-154.62117711,0.00038593,2]
[331561225,1720504241079,-97125.35336264,0.00038593,7]
[331561327,1720504244013,-500.0,0.00027397,2]
[331561328,1720504244022,-315.85920088,0.00038593,7]
[331561329,1720504244033,-1765.29687565,0.00038593,7]
[331561358,1720504246962,-5784.00582292,0.00038583,3]
[331561400,1720505431879,-176.348645,0.00021096,2]
[331561401,1720505431888,-573.651355,0.00021096,2]
[331561402,1720505431898,-166.666666,0.00022345,2]
[331561403,1720505431907,-2905.80522573,0.00022579,2]
[331561405,1720505432800,-7104.79619343,0.00022579,2]
[331561512,1720505437821,-1103.48388795,0.00022579,2]
[331561514,1720505437831,-166.666666,0.00022954,2]
[331561515,1720505437841,-1577.54160267,0.00023453,2]
[331561517,1720505437850,-24900.0,0.0002347,2]
[331561519,1720505437860,-166.666666,0.00023563,2]
[331561520,1720505437870,-250.0,0.0002367,2]
[331561521,1720505437879,-166.666666,0.00024172,2]
[331561522,1720505437888,-166.666666,0.00024782,2]
[331561523,1720505437898,-166.666666,0.00025391,2]
[331561524,1720505437908,-52136.2205257,0.00025501,2]
[331561525,1720505437918,-880.11608907,0.00025869,2]
[331561526,1720505437927,-155.77089587,0.00026848,2]
[331561527,1720505437937,-166.522732,0.00027123,2]
[331561528,1720505437946,-176.348645,0.00027195,2]
[331561529,1720505437956,-573.651355,0.00027195,2]
[331561530,1720505437965,-422.82,0.00027287,3]
[331561531,1720505437974,-2000.0,0.00027297,2]
[331561532,1720505437984,-1323.64169834,0.00027297,2]
[331561533,1720505437994,-9982.8,0.00027347,3]
[331561534,1720505438007,-30765.3924451,0.00027357,3]
[331561535,1720505438016,-30765.3924451,0.00027387,3]
[331561536,1720505438025,-171.06300524,0.00027396,2]
[331561538,1720505438034,-500.0,0.00027396,2]
[331561540,1720505438043,-343.56475577,0.00027396,2]
[331561542,1720505438052,-500.0,0.00027396,2]
[331561543,1720505438061,-500.0,0.00027396,2]
[331561544,1720505438070,-500.0,0.00027396,2]
[331561545,1720505438079,-500.0,0.00027396,2]
[331561546,1720505438089,-500.0,0.00027396,2]
[331561547,1720505438098,-500.0,0.00027396,2]
[331561548,1720505438107,-366.62481072,0.00027397,2]
[331561549,1720505438116,-500.0,0.00027397,2]
[331561550,1720505438126,-500.0,0.00027397,2]
[331561551,1720505438135,-500.0,0.00027397,2]
[331561552,1720505438144,-500.0,0.00027397,2]
[331561553,1720505438154,-500.0,0.00027397,2]
[331561554,1720505438163,-500.0,0.00027397,2]
[331561555,1720505438173,-500.0,0.00027397,2]
[331561556,1720505438183,-500.0,0.00027397,2]
[331561557,1720505438192,-500.0,0.00027397,2]
[331561558,1720505438202,-500.0,0.00027397,2]
[331561559,1720505438211,-500.0,0.00027397,2]
[331561560,1720505438221,-500.0,0.00027397,2]
[331561561,1720505438230,-500.0,0.00027397,2]
[331561562,1720505438240,-500.0,0.00027397,2]
[331561563,1720505438252,-500.0,0.00027397,2]
[331561564,1720505438261,-500.0,0.00027397,2]
[331561565,1720505438271,-500.0,0.00027397,2]
[331561566,1720505438280,-500.0,0.00027397,2]
[331561567,1720505438300,-500.0,0.00027397,2]
[331561568,1720505438420,-500.0,0.00027397,2]
[331561569,1720505438431,-500.0,0.00027397,2]
[331561570,1720505438441,-500.0,0.00027397,2]
[331561571,1720505438450,-500.0,0.00027397,2]
[331561572,1720505438459,-500.0,0.00027397,2]
[331561573,1720505438468,-500.0,0.00027397,2]
[331561574,1720505438478,-500.0,0.00027397,2]
[331561575,1720505438487,-500.0,0.00027397,2]
[331561576,1720505438496,-500.0,0.00027397,2]
[331561577,1720505438507,-500.0,0.00027397,2]
[331561578,1720505438516,-500.0,0.00027397,2]
[331561579,1720505438525,-500.0,0.00027397,2]
[331561580,1720505438535,-500.0,0.00027397,2]
[331561581,1720505438544,-500.0,0.00027397,2]
[331561582,1720505438554,-500.0,0.00027397,2]
[331561583,1720505438563,-191.0559141,0.00027397,120]
[331561584,1720505438573,-154.62117811,0.00027399,2]
[331561585,1720505438582,-175.37288532,0.000274,2]
[331561586,1720505438592,-150.3645055,0.00027416,2]
[331561587,1720505438601,-150.10186468,0.00027454,2]
[331561588,1720505438611,-30765.3924451,0.00027701,3]
[331561589,1720505438625,-20198.34074,0.00027711,2]
[331561590,1720505438635,-30000.0,0.00027999,2]
[331561591,1720505438644,-293.45867215,0.00027999,2]
[331561592,1720505438654,-172.42394717,0.00028,30]
[331561593,1720505438666,-276.64310743,0.00029772,2]
[331561594,1720505438675,-150.0,0.00029988,2]
[331561595,1720505438684,-170.45207762,0.0003,4]
[331561596,1720505438695,-643.5565645,0.0003,4]
[331561597,1720505438705,-235.0,0.0003,2]
[331561598,1720505438714,-30765.3924451,0.00030048,4]
[331561599,1720505438724,-1323.64169831,0.00030058,2]
[331561600,1720505438733,-250.0,0.00030535,2]
[331561601,1720505438742,-350.0,0.00031083,2]
[331561602,1720505438753,-450.0,0.00031631,2]
[331561603,1720505438762,-550.0,0.00032179,2]
[331561604,1720505438772,-650.0,0.00032727,2]
[331561605,1720505438781,-1323.64169831,0.00032819,2]
[331561606,1720505438791,-235.0,0.00033,2]
[331561607,1720505438800,-235.0,0.00033,2]
[331561608,1720505438809,-856.71308225,0.00033275,2]
[331561609,1720505438819,-176.348645,0.00033295,2]
[331561610,1720505438828,-573.651355,0.00033295,2]
[331561611,1720505438838,-1431.78470865,0.00034472,2]
[331561612,1720505438847,-123061.56978,0.00034553,4]
[331561613,1720505438856,-5798.39798668,0.00034563,5]
[331561614,1720505438866,-14286.43641097,0.00034563,2]
[331561617,1720505440189,-191.12784748,0.00027184,2]
[331561618,1720505440200,-239346.01370741,0.00034563,2]
[331561619,1720505440210,-435.0,0.0003467,2]
[331561620,1720505440220,-192.802,0.00034924,30]
[331561621,1720505440230,-161.88750048,0.00034999,4]
[331561622,1720505440240,-158.57719136,0.00034999,4]
[331561623,1720505440253,-177.17588808,0.00034999,4]
[331561624,1720505440263,-275.22284259,0.00035,120]
[331561625,1720505440272,-2374.88264172,0.00035,4]
[331561626,1720505440282,-154.74467129,0.00035259,4]
[331561627,1720505440291,-154.74467129,0.00035259,4]
[331561628,1720505440301,-304.22675637,0.00035259,30]
[331561629,1720505440311,-1323.64169831,0.00035579,2]
[331561630,1720505440321,-224.52122455,0.00035581,4]
[331561631,1720505440331,-154.62117811,0.00035999,4]
[331561632,1720505440341,-265.09411912,0.00035999,2]
[331561633,1720505440352,-235.0,0.00036,2]
[331561634,1720505440362,-235.0,0.00036,2]
[331561635,1720505440372,-150.0,0.00036267,2]
[331561636,1720505440382,-2372.02455725,0.00036351,60]
[331561637,1720505440393,-1092.51200049,0.00036351,21]
[331561638,1720505440403,-868.35461609,0.00036492,2]
[331561639,1720505440412,-528.3,0.000365,62]
[331561640,1720505440422,-243.46735633,0.00037,4]
[331561641,1720505440431,-1580.53894604,0.00037899,4]
[331561642,1720505440441,-150.0,0.00038121,2]
[331561643,1720505440451,-366.61198732,0.00038225,2]
[331561644,1720505440461,-1323.64169831,0.0003834,2]
[331561645,1720505440472,-5292.21400908,0.00038343,2]
[331561646,1720505440482,-88888.0,0.00038393,5]
[331561647,1720505440491,-241.754,0.0003844,2]
[331561648,1720505440503,-151.047,0.0003844,2]
[331561649,1720505440512,-1405.0,0.0003844,2]
[331561650,1720505440522,-1000.0,0.00038493,3]
[331561651,1720505440531,-703.65876633,0.00038499,4]
[331561652,1720505440541,-1007.544524,0.000385,27]
[331561653,1720505440550,-282490.05373,0.00038563,14]
[331561654,1720505440559,-2636.71207576,0.00038564,5]
[331561655,1720505440569,-90270.74688935,0.00038564,7]
[331561745,1720505446156,-301.8983532,0.00027396,2]
[331561746,1720505446172,-198.1016468,0.00027396,2]
[331561747,1720505446181,-95.19499963,0.00027396,2]
[331561878,1720506638444,-308.25554532,0.00020996,2]
[331561879,1720506638455,-276.64310743,0.00021095,2]
[331561880,1720506638465,-750.0,0.00021096,2]
[331561881,1720506638476,-293.45867215,0.00021917,2]
[331561882,1720506638487,-11114.08530711,0.00022579,2]
[331561883,1720506638497,-166.666666,0.00022789,2]
[331561884,1720506638506,-1065.65690458,0.00022942,2]
[331561885,1720506638516,-165.441442,0.00023118,2]
[331561886,1720506638526,-166.666666,0.00023411,2]
[331561887,1720506638535,-358.3260617,0.00023472,2]
[331561888,1720506638545,-8222.9162724,0.00023625,2]
[331561889,1720506638632,-162.707693,0.00023678,2]
[331561890,1720506638642,-166.666666,0.00024032,2]
[331561891,1720506638652,-166.666666,0.00024653,2]
[331561892,1720506638662,-500.8478496,0.00025,2]
[331561893,1720506638672,-166.666666,0.00025275,2]
[331561894,1720506638682,-150.3645055,0.00025495,2]
[331561895,1720506638691,-52136.2205257,0.00025501,2]
[331561896,1720506638701,-1500.0,0.00025501,2]
[331561897,1720506638711,-166.666666,0.00025896,2]
[331561898,1720506638721,-162.603903,0.00025933,2]
[331561899,1720506638732,-880.11608907,0.00026574,2]
[331561900,1720506638741,-813.14107465,0.00026848,7]
[331561901,1720506638752,-813.14107465,0.00026848,7]
[331561902,1720506638762,-1000.0,0.00027,4]
[331561903,1720506638772,-2000.0,0.00027075,2]
[331561904,1720506638783,-1323.64169834,0.00027095,2]
[331561905,1720506638793,-166.522732,0.00027123,2]
[331561906,1720506638804,-422.82,0.00027135,3]
[331561907,1720506638814,-10558.23,0.00027145,3]
[331561908,1720506638825,-8798.52,0.00027145,3]
[331561909,1720506638834,-30765.3924451,0.00027155,3]
[331561910,1720506638844,-30000.0,0.00027184,2]
[331561911,1720506638855,-197.30576581,0.00027194,2]
[331561912,1720506638864,-154.74467129,0.00027194,2]
[331561913,1720506638874,-750.0,0.00027195,2]
[331561914,1720506638884,-150.0,0.00027369,2]
[331561915,1720506638894,-30765.3924451,0.00027386,3]
[331561916,1720506638904,-30765.3924451,0.00027387,3]
[331561917,1720506638914,-150.10186468,0.00027393,2]
[331561918,1720506638924,-500.0,0.00027395,2]
[331561919,1720506638933,-500.0,0.00027395,2]
[331561920,1720506638943,-492.50450535,0.00027395,2]
[331561921,1720506638953,-343.56475577,0.00027395,2]
[331561922,1720506638962,-500.0,0.00027395,2]
[331561923,1720506638973,-500.0,0.00027395,2]
[331561924,1720506638985,-500.0,0.00027395,2]
[331561925,1720506638995,-500.0,0.00027395,2]
[331561926,1720506639005,-500.0,0.00027395,2]
[331561927,1720506639016,-2244.84007704,0.00027396,14]
[331561928,1720506639027,-189.22156458,0.00027396,2]
[331561929,1720506639037,-154.62117811,0.00027396,2]
[331561930,1720506639048,-428.24738691,0.00027396,2]
[331561931,1720506639064,-154.66746495,0.00027396,10]
[331561932,1720506639074,-6863.87493251,0.00027396,2]
[331561933,1720506639089,-225.71833691,0.00027396,2]
[331561934,1720506639100,-169.7492569,0.00027396,2]
[331561935,1720506639111,-155.29878261,0.00027396,2]
[331561936,1720506639122,-264.58175342,0.00027396,2]
[331561937,1720506639133,-297.38077892,0.00027396,30]
[331561938,1720506639143,-763.79636746,0.00027396,2]
[331561939,1720506639154,-155.24030498,0.00027396,2]
[331561940,1720506639164,-516.62481072,0.00027397,2]
[331561941,1720506639175,-690.02701787,0.00027397,2]
[331561942,1720506639185,-690.02701787,0.00027397,2]
[331561943,1720506639196,-690.02701787,0.00027397,2]
[331561944,1720506639206,-690.02701787,0.00027397,2]
[331561945,1720506639217,-690.02701787,0.00027397,2]
[331561946,1720506639228,-690.02701787,0.00027397,2]
[331561947,1720506639238,-690.02701787,0.00027397,2]
[331561948,1720506639248,-690.02701787,0.00027397,2]
[331561949,1720506639257,-690.02701787,0.00027397,2]
[331561950,1720506639267,-690.02701787,0.00027397,2]
[331561951,1720506639277,-690.02701787,0.00027397,2]
[331561952,1720506639287,-690.02701787,0.00027397,2]
[331561953,1720506639298,-690.02701787,0.00027397,2]
[331561954,1720506639312,-690.02701787,0.00027397,2]
[331561955,1720506639322,-690.02701787,0.00027397,2]
[331561956,1720506639332,-690.02701787,0.00027397,2]
[331561957,1720506639343,-690.02701787,0.00027397,2]
[331561958,1720506639353,-690.02701787,0.00027397,2]
[331561959,1720506639363,-690.02701787,0.00027397,2]
[331561960,1720506639373,-690.02701787,0.00027397,2]
[331561961,1720506639383,-690.02701787,0.00027397,2]
[331561962,1720506639393,-690.02701787,0.00027397,2]
[331561963,1720506639403,-690.02701787,0.00027397,2]
[331561964,1720506639413,-690.02701787,0.00027397,2]
[331561965,1720506639423,-690.02701787,0.00027397,2]
[331561966,1720506639432,-690.02701787,0.00027397,2]
[331561967,1720506639442,-690.02701787,0.00027397,2]
[331561968,1720506639452,-690.02701787,0.00027397,2]
[331561969,1720506639461,-690.02701787,0.00027397,2]
[331561970,1720506639471,-690.02701787,0.00027397,2]
[331561971,1720506639481,-690.02701787,0.00027397,2]
[331561972,1720506639491,-690.02701787,0.00027397,2]
[331561973,1720506639501,-690.02701787,0.00027397,2]
[331561974,1720506639511,-690.02701787,0.00027397,2]
[331561975,1720506639520,-690.02701787,0.00027397,2]
[331561976,1720506639530,-690.02701787,0.00027397,2]
[331561977,1720506639539,-690.02701787,0.00027397,2]
[331561978,1720506639549,-690.02701787,0.00027397,2]
[331561979,1720506639564,-690.02701787,0.00027397,2]
[331561980,1720506639574,-690.02701787,0.00027397,2]
[331561981,1720506639584,-690.02701787,0.00027397,2]
[331561982,1720506639594,-690.02701787,0.00027397,2]
[331561983,1720506639606,-690.02701787,0.00027397,2]
[331561984,1720506639616,-690.02701787,0.00027397,2]
[331561985,1720506639626,-690.02701787,0.00027397,2]
[331561986,1720506639636,-690.02701787,0.00027397,2]
[331561987,1720506639646,-690.02701787,0.00027397,2]
[331561988,1720506639656,-191.0559141,0.00027397,120]
[331561989,1720506639666,-154.62117811,0.00027399,2]
[331561990,1720506639676,-177.17588808,0.00027399,2]
[331561991,1720506639686,-158.57719136,0.00027399,2]
[331561992,1720506639696,-922.8597104,0.00027399,2]
[331561993,1720506639706,-175.37288532,0.000274,2]
[331561994,1720506639716,-250.0,0.00027917,2]
[331561995,1720506639727,-191.12784748,0.00027999,2]
[331561996,1720506639737,-435.0,0.00027999,2]
[331561997,1720506639747,-154.74467129,0.00027999,2]
[331561998,1720506639756,-172.42394717,0.00028,30]
[331561999,1720506639766,-350.0,0.00028465,2]
[331562000,1720506639775,-1323.64169831,0.00028996,2]
[331562001,1720506639785,-1000.0,0.00029,29]
[331562002,1720506639795,-450.0,0.00029013,2]
[331562003,1720506639807,-550.0,0.00029561,2]
[331562004,1720506639816,-20198.34074,0.00029693,2]
[331562005,1720506639826,-224.52122455,0.00029772,2]
[331562006,1720506639835,-207.84,0.00029793,2]
[331562007,1720506639845,-202.00872387,0.00029793,2]
[331562008,1720506639856,-30765.3924451,0.00029793,3]
[331562009,1720506639866,-3206.26083535,0.00029904,2]
[331562010,1720506639876,-155.77089587,0.00029904,2]
[331562011,1720506639886,-157.26558842,0.00029904,2]
[331562012,1720506639896,-1580.53894604,0.00029979,2]
[331562013,1720506639906,-170.45207762,0.0003,4]
[331562014,1720506639916,-154.62117811,0.0003,4]
[331562015,1720506639927,-643.5565645,0.0003,4]
[331562016,1720506639937,-304.22675637,0.0003,30]
[331562017,1720506639948,-283.0,0.0003,2]
[331562018,1720506639958,-650.0,0.00030109,2]
[331562019,1720506639968,-856.71308225,0.00030657,2]
[331562020,1720506639978,-1323.64169831,0.00030898,2]
[331562021,1720506639989,-1000.0,0.00031,31]
[331562022,1720506640002,-1323.64169831,0.00032799,2]
[331562023,1720506640012,-1000.0,0.00033,33]
[331562024,1720506640086,-283.0,0.00033,2]
[331562025,1720506640098,-283.0,0.00033,2]
[331562026,1720506640108,-283.0,0.00033,2]
[331562027,1720506640119,-2372.02455725,0.00033292,60]
[331562028,1720506640129,-750.0,0.00033295,2]
[331562029,1720506640140,-1000.0,0.00034,34]
[331562030,1720506640150,-155.735033,0.00034472,7]
[331562031,1720506640161,-151.0,0.00034472,7]
[331562032,1720506640171,-222.047666,0.00034472,7]
[331562033,1720506640181,-222.047666,0.00034472,7]
[331562034,1720506640191,-151.0,0.00034472,7]
[331562035,1720506640202,-151.0,0.00034472,7]
[331562036,1720506640212,-151.0,0.00034472,7]
[331562037,1720506640222,-5798.39798668,0.00034507,5]
[331562038,1720506640233,-2727.11601656,0.00034507,4]
[331562043,1720506640466,-703.65876633,0.00027184,2]
[331562045,1720506640476,-1266.38237034,0.00029903,2]
[331562047,1720506640489,-1236.21969868,0.00034507,4]
[331562049,1720506640502,-119098.23406476,0.00034507,4]
[331562050,1720506640512,-253632.45011838,0.00034555,2]
[331562051,1720506640522,-165.441442,0.00034678,2]
[331562052,1720506640533,-1323.64169831,0.000347,2]
[331562053,1720506640543,-1000.0,0.000348,3]
[331562054,1720506640554,-192.802,0.00034919,30]
[331562055,1720506640565,-1662.41784921,0.00035,4]
[331562056,1720506640575,-63000.0,0.00035,15]
[331562057,1720506640585,-275.22284259,0.00035,120]
[331562058,1720506640595,-150.0,0.00035,2]
[331562059,1720506640605,-154.62117811,0.00035292,4]
[331562060,1720506640615,-1000.0,0.00036,36]
[331562061,1720506640626,-283.0,0.00036,2]
[331562062,1720506640636,-283.0,0.00036,2]
[331562063,1720506640646,-360.8874203,0.00036239,4]
[331562064,1720506640656,-692.82385815,0.00036239,30]
[331562065,1720506640666,-868.35461609,0.00036463,2]
[331562066,1720506640676,-528.3,0.000365,62]
[331562067,1720506640687,-154.62117811,0.00037,4]
[331562068,1720506640697,-1000.0,0.00038,38]
[331562069,1720506640707,-536.07685891,0.00038,30]
[331562070,1720506640716,-2934.1716183,0.00038,2]
[331562071,1720506640727,-5292.21400908,0.00038148,2]